[Event "EYCC Girls U10 2021"]
[Site "Tornelo"]
[Date "2021.10.15"]
[Round "5.2"]
[White "Sultanova, Kristina"]
[Black "Sokolova, Regina"]
[Result "1-0"]
[ECO "B12"]
[WhiteElo "1293"]
[BlackElo "1364"]
[Annotator "NA RC"]
[PlyCount "193"]
[EventDate "2021.10.15"]
[EventType "swiss"]
[EventCountry "NET"]
[SourceTitle "playchess.com"]
[Source "ChessBase"]
[SourceQuality "1"]
[TimeControl "5400+30"]

1. e4 {[%emt 0:00:30]} c6 {[%emt 0:00:37]} 2. d4 {[%emt 0:00:06]} d5 {[%emt 0:00:02]} 3. e5 {[%emt 0:00:06]} Bf5 {[%emt 0:00:06]} 4. Bd3 {[%emt 0:00:10]} Bxd3 {[%emt 0:00:04]} 5. Qxd3 {[%emt 0:00:05]} e6 {[%emt 0:00:02]} 6. Ne2 {[%emt 0:00:04]} Qa5+ {[%emt 0:00:20]} 7. Nd2 {[%emt 0:00:14]} Qa6 {[%emt 0:00:11]} 8. c4 {[%emt 0:00:13]} Ne7 {[%emt 0:00:38]} 9. b3 {[%emt 0:00:15]} Ng6 {[%emt 0:00:23]} 10. O-O {[%emt 0:00:40]} Be7 {[%emt 0:00:18]} 11. f4 {[%emt 0:01:41]} Nh4 {[%emt 0:04:58]} 12. Ng3 {[%emt 0:05:30]} g6 {[%emt 0:01:17]} 13. Qc2 {[%emt 0:04:13]} Nd7 {[%emt 0:08:10]} 14. Bb2 {[%emt 0:02:01]} Nf5 {[%emt 0:18:18]} 15. Rfe1 {[%emt 0:04:17]} Qb6 {[%emt 0:06:47]} 16. Nf3 {[%emt 0:02:49]} h6 {[%emt 0:12:56]} 17. Nxf5 {[%emt 0:08:02]} gxf5 {[%emt 0:00:12]} 18. Rac1 {[%emt 0:01:12]} O-O {[%emt 0:06:34]} 19. h3 {[%emt 0:02:42]} Kh8 {[%emt 0:01:33]} 20. Kh2 {[%emt 0:01:20]} Rg8 {[%emt 0:00:51]} 21. Re2 {[%emt 0:05:01]} Rac8 {[%emt 0:01:28]} 22. c5 {[%emt 0:00:24]} Qd8 {[%emt 0:00:14]} 23. g3 {[%emt 0:01:55]} Nf8 {[%emt 0:02:46]} 24. Rg2 {[%emt 0:00:50]} Ng6 {[%emt 0:00:19]} 25. Rcg1 {[%emt 0:00:58]} Qf8 {[%emt 0:01:44]} 26. Bc1 {[%emt 0:00:26]} h5 {[%emt 0:04:13]} 27. h4 {[%emt 0:02:57]} Kg7 {[%emt 0:01:50]} 28. Ng5 {[%emt 0:00:36]} Bxg5 {[%emt 0:00:13]} 29. fxg5 {[%emt 0:00:15]} Rh8 {[%emt 0:01:18]} 30. Bf4 {[%emt 0:00:20]} Qe7 {[%emt 0:01:04]} 31. b4 {[%emt 0:00:29]} a6 {[%emt 0:00:55]} 32. a4 {[%emt 0:00:20]} Ra8 {[%emt 0:01:02]} 33. Qb3 {[%emt 0:00:15]} Rhb8 {[%emt 0:00:37]} 34. Ra2 {[%emt 0:00:31]} b6 {[%emt 0:05:40]} 35. Qc3 {[%emt 0:01:13]} b5 {[%emt 0:02:00]} 36. axb5 {[%emt 0:01:08]} axb5 {[%emt 0:00:10]} 37. Rga1 {[%emt 0:00:14]} Qb7 {[%emt 0:01:09]} 38. Ra5 {[%emt 0:00:30]} Rxa5 {[%emt 0:00:16]} 39. Rxa5 {[%emt 0:00:07]} Ra8 {[%emt 0:00:25]} 40. Qa3 {[%emt 0:00:08]} Rxa5 {[%emt 0:00:52]} 41. Qxa5 {[%emt 0:00:15]} Qc8 {[%emt 0:00:12]} 42. Qa7 {[%emt 0:00:36]} Kg8 {[%emt 0:00:26]} 43. Kh3 {[%emt 0:01:45]} Kg7 {[%emt 0:00:23]} 44. Bc1 {[%emt 0:00:44]} Kg8 {[%emt 0:00:38]} 45. Qa5 {[%emt 0:01:07]} Kg7 {[%emt 0:00:58]} 46. Qa3 {[%emt 0:00:10]} Ne7 {[%emt 0:01:37]} 47. Qe3 {[%emt 0:04:16]} Ng6 {[%emt 0:01:14]} 48. Qf3 {[%emt 0:00:13]} Qh8 {[%emt 0:00:26]} 49. Bd2 {[%emt 0:00:13]} Ne7 {[%emt 0:02:40]} 50. Bc1 {[%emt 0:03:45]} Ng6 {[%emt 0:00:12]} 51. Kg2 {[%emt 0:00:28]} Ne7 {[%emt 0:01:03]} 52. Qa3 {[%emt 0:00:09]} Qc8 {[%emt 0:00:51]} 53. Kf2 {[%emt 0:00:15]} Ng6 {[%emt 0:00:26]} 54. Ke2 {[%emt 0:00:08]} Ne7 {[%emt 0:01:06]} 55. Kd3 {[%emt 0:00:07]} Ng6 {[%emt 0:00:33]} 56. Kc2 {[%emt 0:00:07]} Ne7 {[%emt 0:00:33]} 57. Kb2 {[%emt 0:00:06]} Ng6 {[%emt 0:00:27]} 58. Bd2 {[%emt 0:00:11]} Ne7 {[%emt 0:00:19]} 59. Qf3 {[%emt 0:01:22]} Qh8 {[%emt 0:00:16]} 60. g6 {[%emt 0:07:00]} fxg6 {[%emt 0:02:39]} 61. Bg5 {[%emt 0:00:47]} Kf7 {[%emt 0:00:21]} 62. Qa3 {[%emt 0:00:25]} Qb8 {[%emt 0:03:58]} 63. Qa5 {[%emt 0:01:25]} Ke8 {[%emt 0:03:42]} 64. Qa6 {[%emt 0:00:47]} Qc8 {[%emt 0:01:11]} 65. Qa7 {[%emt 0:00:31]} Qd7 {[%emt 0:00:18]} 66. Qb8+ {[%emt 0:02:54]} Qc8 {[%emt 0:00:12]} 67. Qd6 {[%emt 0:00:35]} Qd7 {[%emt 0:00:09]} 68. Bxe7 {[%emt 0:00:24]} Qxe7 {[%emt 0:00:11]} 69. Qxc6+ {[%emt 0:00:08]} Kf8 {[%emt 0:00:15]} 70. Qd6 {[%emt 0:01:26]} f4 {[%emt 0:00:42]} 71. gxf4 {[%emt 0:00:22]} Kf7 {[%emt 0:00:19]} 72. Qxe7+ {[%emt 0:00:17]} Kxe7 {[%emt 0:00:03]} 73. Kc3 {[%emt 0:00:07]} Kd7 {[%emt 0:00:02]} 74. Kd3 {[%emt 0:00:07]} Kc6 {[%emt 0:00:02]} 75. Ke3 {[%emt 0:00:07]} Kd7 {[%emt 0:00:03]} 76. f5 {[%emt 0:00:10]} exf5 {[%emt 0:01:17]} 77. Kf4 {[%emt 0:00:14]} Kd8 {[%emt 0:00:09]} 78. Kg5 {[%emt 0:00:07]} Ke7 {[%emt 0:01:56]} 79. c6 {[%emt 0:00:21]} Ke6 {[%emt 0:00:06]} 80. c7 {[%emt 0:00:45]} Kd7 {[%emt 0:00:07]} 81. e6+ {[%emt 0:00:09]} Kxc7 {[%emt 0:00:02]} 82. Kf6 {[%emt 0:00:09]} f4 {[%emt 0:00:05]} 83. e7 {[%emt 0:00:08]} f3 {[%emt 0:00:03]} 84. e8=Q {[%emt 0:00:21]} f2 {[%emt 0:00:05]} 85. Qxb5 {[%emt 0:00:09]} Kd6 {[%emt 0:00:07]} 86. Qf1 {[%emt 0:00:10]} Kc6 {[%emt 0:00:03]} 87. Qxf2 {[%emt 0:00:13]} Kd6 {[%emt 0:00:03]} 88. b5 {[%emt 0:00:17]} Kc7 {[%emt 0:00:02]} 89. Qb2 {[%emt 0:00:12]} Kb6 {[%emt 0:00:02]} 90. Ke7 {[%emt 0:00:12]} Kc7 {[%emt 0:00:05]} 91. b6+ {[%emt 0:00:09]} Kb7 {[%emt 0:00:03]} 92. Kd7 {[%emt 0:00:08]} Kb8 {[%emt 0:00:02]} 93. b7 {[%emt 0:00:09]} g5 {[%emt 0:00:03]} 94. Qb6 {[%emt 0:00:22]} gxh4 {[%emt 0:00:07]} 95. Qc7+ {[%emt 0:00:08]} Ka7 {[%emt 0:00:07]} 96. b8=Q+ {[%emt 0:00:10]} Ka6 {[%emt 0:00:02]} 97. Qbb6# {[%emt 0:00:10]} 1-0

[Event "EYCC Girls U10 2021"]
[Site "Tornelo"]
[Date "2021.10.15"]
[Round "5.4"]
[White "Bubnova, Uliana"]
[Black "Bashirli, Saadat"]
[Result "0-1"]
[ECO "B36"]
[WhiteElo "1333"]
[BlackElo "1284"]
[Annotator "NA RC"]
[PlyCount "124"]
[EventDate "2021.10.15"]
[EventType "swiss"]
[EventCountry "NET"]
[SourceTitle "playchess.com"]
[Source "ChessBase"]
[SourceQuality "1"]
[TimeControl "5400+30"]

1. e4 {[%emt 0:00:30]} c5 {[%emt 0:00:35]} 2. Nf3 {[%emt 0:00:15]} g6 {[%emt 0:00:04]} 3. d4 {[%emt 0:00:11]} cxd4 {[%emt 0:00:05]} 4. Nxd4 {[%emt 0:00:05]} Nc6 {[%emt 0:00:05]} 5. c4 {[%emt 0:00:14]} Nf6 {[%emt 0:00:06]} 6. Nc3 {[%emt 0:01:05]} Nxd4 {[%emt 0:00:05]} 7. Qxd4 {[%emt 0:00:21]} d6 {[%emt 0:00:05]} 8. Be3 {[%emt 0:02:35]} Bg7 {[%emt 0:00:13]} 9. f3 {[%emt 0:05:13]} Be6 {[%emt 0:00:55]} 10. Be2 {[%emt 0:04:50]} O-O {[%emt 0:01:10]} 11. Qd2 {[%emt 0:00:29]} Re8 {[%emt 0:00:29]} 12. O-O {[%emt 0:00:32]} Bd7 {[%emt 0:03:47]} 13. Rac1 {[%emt 0:01:30]} a5 {[%emt 0:01:20]} 14. Nd5 {[%emt 0:00:42]} Nxd5 {[%emt 0:00:41]} 15. cxd5 {[%emt 0:02:10]} b5 {[%emt 0:04:39]} 16. Bd4 {[%emt 0:04:36]} Bxd4+ {[%emt 0:03:34]} 17. Qxd4 {[%emt 0:00:12]} a4 {[%emt 0:00:43]} 18. a3 {[%emt 0:01:38]} Qa5 {[%emt 0:02:58]} 19. Kh1 {[%emt 0:01:04]} Rec8 {[%emt 0:00:40]} 20. Qe3 {[%emt 0:02:56]} b4 {[%emt 0:01:33]} 21. Rxc8+ {[%emt 0:02:01]} Rxc8 {[%emt 0:00:21]} 22. Qd2 {[%emt 0:00:13]} Rb8 {[%emt 0:00:22]} 23. Bc4 {[%emt 0:09:27]} Qc5 {[%emt 0:01:21]} 24. Rc1 {[%emt 0:02:24]} bxa3 {[%emt 0:02:05]} 25. bxa3 {[%emt 0:01:35]} Qxa3 {[%emt 0:01:15]} 26. Rg1 {[%emt 0:01:08]} Qb2 {[%emt 0:00:53]} 27. Qa5 {[%emt 0:01:00]} a3 {[%emt 0:01:13]} 28. h3 {[%emt 0:00:53]} Qb4 {[%emt 0:00:55]} 29. Qc7 {[%emt 0:04:55]} Qb7 {[%emt 0:03:32]} 30. Qxb7 {[%emt 0:12:17]} Rxb7 {[%emt 0:00:16]} 31. Ra1 {[%emt 0:01:07]} Ra7 {[%emt 0:00:12]} 32. Kg1 {[%emt 0:01:37]} Kf8 {[%emt 0:00:09]} 33. Kf2 {[%emt 0:00:50]} Ke8 {[%emt 0:00:12]} 34. Ke3 {[%emt 0:01:51]} Kd8 {[%emt 0:00:10]} 35. Kd3 {[%emt 0:02:48]} Kc7 {[%emt 0:00:11]} 36. Kc3 {[%emt 0:00:32]} Kb6 {[%emt 0:03:39]} 37. f4 {[%emt 0:10:11]} Kc5 {[%emt 0:05:14]} 38. Rc1 {[%emt 0:07:33]} Bb5 {[%emt 0:03:11]} 39. Ba2 {[%emt 0:01:06]} Kb6 {[%emt 0:01:32]} 40. Rb1 {[%emt 0:03:18]} Ra4 {[%emt 0:04:22]} 41. Re1 {[%emt 0:02:43]} Kc5 {[%emt 0:00:45]} 42. g3 {[%emt 0:00:39]} Rd4 {[%emt 0:00:53]} 43. Re3 {[%emt 0:02:20]} Rd1 {[%emt 0:00:57]} 44. Kc2 {[%emt 0:01:24]} Ba4+ {[%emt 0:01:47]} 45. Kc3 {[%emt 0:01:00]} Rc1+ {[%emt 0:00:47]} 46. Kd3 {[%emt 0:01:50]} Ra1 {[%emt 0:00:26]} 47. Bc4 {[%emt 0:00:28]} Rd1+ {[%emt 0:00:14]} 48. Ke2 {[%emt 0:00:12]} Kxc4 {[%emt 0:02:25]} 49. Rxa3 {[%emt 0:00:07]} Bc2 {[%emt 0:02:39]} 50. Ra7 {[%emt 0:00:42]} Rd4 {[%emt 0:00:26]} 51. Rc7+ {[%emt 0:00:48]} Kb3 {[%emt 0:00:14]} 52. Rb7+ {[%emt 0:00:07]} Rb4 {[%emt 0:00:07]} 53. Rxb4+ {[%emt 0:00:09]} Kxb4 {[%emt 0:00:04]} 54. Ke3 {[%emt 0:00:12]} Kc4 {[%emt 0:00:05]} 55. g4 {[%emt 0:00:26]} f6 {[%emt 0:00:39]} 56. h4 {[%emt 0:00:17]} h6 {[%emt 0:00:05]} 57. f5 {[%emt 0:02:54]} g5 {[%emt 0:00:11]} 58. h5 {[%emt 0:00:19]} Kc3 {[%emt 0:00:10]} 59. e5 {[%emt 0:00:27]} dxe5 {[%emt 0:00:11]} 60. Ke2 {[%emt 0:00:39]} Kd4 {[%emt 0:00:07]} 61. Kd2 {[%emt 0:00:18]} Bb3 {[%emt 0:00:08]} 62. Ke2 {[%emt 0:00:50]} Kxd5 {[%emt 0:00:04]} 0-1

[Event "EYCC Girls U10 2021"]
[Site "Tornelo"]
[Date "2021.10.15"]
[Round "5.5"]
[White "Radu, Antonia"]
[Black "Asachenko, Ksenia"]
[Result "0-1"]
[ECO "B43"]
[WhiteElo "1204"]
[BlackElo "1382"]
[Annotator "NA RC"]
[PlyCount "108"]
[EventDate "2021.10.15"]
[EventType "swiss"]
[EventCountry "NET"]
[SourceTitle "playchess.com"]
[Source "ChessBase"]
[SourceQuality "1"]
[TimeControl "5400+30"]

1. e4 {[%emt 0:00:30]} c5 {[%emt 0:01:23]} 2. Nf3 {[%emt 0:00:07]} e6 {[%emt 0:00:05]} 3. d4 {[%emt 0:00:06]} cxd4 {[%emt 0:00:04]} 4. Nxd4 {[%emt 0:00:05]} a6 {[%emt 0:00:03]} 5. Nc3 {[%emt 0:00:19]} Qc7 {[%emt 0:00:04]} 6. Bd3 {[%emt 0:00:14]} Nf6 {[%emt 0:00:06]} 7. Qf3 {[%emt 0:02:05]} Bb4 {[%emt 0:08:10]} 8. Bd2 {[%emt 0:00:11]} Qe5 {[%emt 0:07:24]} 9. Nb3 {[%emt 0:01:07]} d5 {[%emt 0:05:43]} 10. O-O {[%emt 0:01:55]} Bxc3 {[%emt 0:14:59]} 11. Bxc3 {[%emt 0:00:26]} dxe4 {[%emt 0:01:00]} 12. Bxe4 {[%emt 0:02:06]} Qxe4 {[%emt 0:01:28]} 13. Qxe4 {[%emt 0:01:33]} Nxe4 {[%emt 0:00:16]} 14. Bxg7 {[%emt 0:00:05]} Rg8 {[%emt 0:02:09]} 15. Bd4 {[%emt 0:00:07]} b5 {[%emt 0:03:25]} 16. f3 {[%emt 0:00:19]} Nd6 {[%emt 0:01:50]} 17. Rad1 {[%emt 0:00:35]} Nd7 {[%emt 0:03:45]} 18. Na5 {[%emt 0:01:14]} Nc4 {[%emt 0:05:46]} 19. Nxc4 {[%emt 0:00:08]} bxc4 {[%emt 0:00:07]} 20. h4 {[%emt 0:00:34]} Bb7 {[%emt 0:02:15]} 21. Kh2 {[%emt 0:00:38]} O-O-O {[%emt 0:00:42]} 22. Bc3 {[%emt 0:00:33]} Rg6 {[%emt 0:02:34]} 23. Ba5 {[%emt 0:00:18]} Rdg8 {[%emt 0:01:43]} 24. Rf2 {[%emt 0:00:11]} Rh6 {[%emt 0:03:12]} 25. Kh3 {[%emt 0:00:46]} Ne5 {[%emt 0:04:57]} 26. Rfd2 {[%emt 0:01:17]} Bd5 {[%emt 0:02:09]} 27. Bb6 {[%emt 0:01:07]} Kb7 {[%emt 0:01:36]} 28. Be3 {[%emt 0:00:13]} Rhg6 {[%emt 0:02:01]} 29. Bf4 {[%emt 0:00:17]} Nc6 {[%emt 0:02:01]} 30. Rf2 {[%emt 0:01:27]} Ne7 {[%emt 0:06:29]} 31. g4 {[%emt 0:00:31]} h6 {[%emt 0:02:30]} 32. h5 {[%emt 0:00:14]} Rf6 {[%emt 0:00:30]} 33. Kg3 {[%emt 0:00:52]} Nf5+ {[%emt 0:03:02]} 34. Kh2 {[%emt 0:01:18]} Nh4 {[%emt 0:02:59]} 35. Kh3 {[%emt 0:02:01]} Nxf3 {[%emt 0:01:30]} 36. Rxf3 {[%emt 0:00:07]} Bxf3 {[%emt 0:00:18]} 37. Rd7+ {[%emt 0:00:07]} Ka8 {[%emt 0:00:57]} 38. Be5 {[%emt 0:00:29]} Bxg4+ {[%emt 0:00:14]} 39. Kh4 {[%emt 0:00:12]} Rf5 {[%emt 0:00:15]} 40. Bc3 {[%emt 0:00:22]} Rxh5+ {[%emt 0:00:13]} 41. Kg3 {[%emt 0:00:04]} Rh3+ {[%emt 0:00:21]} 42. Kf4 {[%emt 0:00:09]} e5+ {[%emt 0:00:49]} 43. Kxe5 {[%emt 0:00:05]} Bxd7 {[%emt 0:00:05]} 44. Kf6 {[%emt 0:00:04]} Rf3+ {[%emt 0:00:09]} 45. Ke7 {[%emt 0:00:04]} Be6 {[%emt 0:00:04]} 46. Kd6 {[%emt 0:00:05]} h5 {[%emt 0:00:06]} 47. Kc6 {[%emt 0:00:07]} h4 {[%emt 0:00:06]} 48. Be5 {[%emt 0:00:04]} h3 {[%emt 0:00:06]} 49. Kb6 {[%emt 0:00:08]} Rg5 {[%emt 0:00:05]} 50. Bc7 {[%emt 0:00:09]} Rb5+ {[%emt 0:00:15]} 51. Kxa6 {[%emt 0:00:07]} Rxb2 {[%emt 0:00:15]} 52. a4 {[%emt 0:00:13]} Bc8+ {[%emt 0:00:07]} 53. Ka5 {[%emt 0:00:04]} Rf5+ {[%emt 0:00:03]} 54. Be5 {[%emt 0:00:04]} Rxe5# {[%emt 0:00:03]} 0-1

[Event "EYCC Girls U10 2021"]
[Site "Tornelo"]
[Date "2021.10.15"]
[Round "5.6"]
[White "Mateeva, Yana"]
[Black "Zeybek, Kayla Nil"]
[Result "0-1"]
[ECO "A45"]
[WhiteElo "1299"]
[BlackElo "1221"]
[Annotator "NA RC"]
[PlyCount "66"]
[EventDate "2021.10.15"]
[EventType "swiss"]
[EventCountry "NET"]
[SourceTitle "playchess.com"]
[Source "ChessBase"]
[SourceQuality "1"]
[TimeControl "5400+30"]

1. d4 {[%emt 0:00:30]} Nf6 {[%emt 0:00:48]} 2. Bf4 {[%emt 0:00:56]} d6 {[%emt 0:10:37]} 3. Nc3 {[%emt 0:05:41]} Bf5 {[%emt 0:01:42]} 4. Nf3 {[%emt 0:03:13]} g6 {[%emt 0:12:00]} 5. Nh4 {[%emt 0:04:09]} Bd7 {[%emt 0:01:27]} 6. e4 {[%emt 0:01:09]} Bg7 {[%emt 0:07:59]} 7. Qd2 {[%emt 0:04:32]} O-O {[%emt 0:14:55]} 8. Bh6 {[%emt 0:09:15]} e5 {[%emt 0:01:25]} 9. dxe5 {[%emt 0:09:32]} Bxh6 {[%emt 0:01:54]} 10. Qxh6 {[%emt 0:01:45]} Ng4 {[%emt 0:00:46]} 11. Qf4 {[%emt 0:12:39]} Qxh4 {[%emt 0:00:26]} 12. h3 {[%emt 0:01:35]} Qh6 {[%emt 0:00:42]} 13. Qg3 {[%emt 0:03:33]} Nxe5 {[%emt 0:00:50]} 14. Nd5 {[%emt 0:02:40]} Na6 {[%emt 0:00:44]} 15. f4 {[%emt 0:00:48]} Nc6 {[%emt 0:01:14]} 16. O-O-O {[%emt 0:04:45]} Qg7 {[%emt 0:02:06]} 17. Bc4 {[%emt 0:04:33]} Nab4 {[%emt 0:08:53]} 18. Nxc7 {[%emt 0:01:49]} Rac8 {[%emt 0:01:13]} 19. Nb5 {[%emt 0:00:34]} Nd4 {[%emt 0:01:38]} 20. Nxd4 {[%emt 0:08:09]} Rxc4 {[%emt 0:00:44]} 21. a3 {[%emt 0:03:02]} Rxd4 {[%emt 0:00:42]} 22. axb4 {[%emt 0:00:34]} Rxb4 {[%emt 0:00:38]} 23. c3 {[%emt 0:00:36]} Rb6 {[%emt 0:01:03]} 24. e5 {[%emt 0:02:40]} Bf5 {[%emt 0:05:12]} 25. Rd5 {[%emt 0:05:16]} Ra6 {[%emt 0:06:39]} 26. Kd2 {[%emt 0:03:14]} dxe5 {[%emt 0:01:18]} 27. fxe5 {[%emt 0:00:33]} Ra2 {[%emt 0:01:49]} 28. Rd1 {[%emt 0:01:18]} Qh6+ {[%emt 0:04:52]} 29. Ke2 {[%emt 0:01:03]} Rxb2+ {[%emt 0:01:01]} 30. Kf3 {[%emt 0:01:19]} Qh5+ {[%emt 0:01:41]} 31. Kf4 {[%emt 0:01:01]} Qe2 {[%emt 0:01:18]} 32. Rd8 {[%emt 0:02:26]} Qe4+ {[%emt 0:01:06]} 33. Kg5 {[%emt 0:00:41]} Kg7 {[%emt 0:00:37]} 0-1

[Event "EYCC Girls U10 2021"]
[Site "Tornelo"]
[Date "2021.10.15"]
[Round "5.7"]
[White "Blinova, Sofia"]
[Black "Huseynova, Dinara"]
[Result "1-0"]
[ECO "B18"]
[WhiteElo "1297"]
[BlackElo "1210"]
[Annotator "NA RC"]
[PlyCount "115"]
[EventDate "2021.10.15"]
[EventType "swiss"]
[EventCountry "NET"]
[SourceTitle "playchess.com"]
[Source "ChessBase"]
[SourceQuality "1"]
[TimeControl "5400+30"]

1. e4 {[%emt 0:00:30]} c6 {[%emt 0:00:33]} 2. d4 {[%emt 0:00:05]} d5 {[%emt 0:00:04]} 3. Nc3 {[%emt 0:00:10]} dxe4 {[%emt 0:00:03]} 4. Nxe4 {[%emt 0:00:02]} Bf5 {[%emt 0:00:02]} 5. Ng3 {[%emt 0:00:43]} Bg6 {[%emt 0:00:06]} 6. Nf3 {[%emt 0:00:48]} Nd7 {[%emt 0:01:46]} 7. Be2 {[%emt 0:01:44]} Ngf6 {[%emt 0:00:30]} 8. Be3 {[%emt 0:01:23]} e6 {[%emt 0:00:22]} 9. Qd2 {[%emt 0:04:28]} Nd5 {[%emt 0:04:12]} 10. O-O {[%emt 0:01:47]} Be7 {[%emt 0:04:56]} 11. a3 {[%emt 0:01:13]} O-O {[%emt 0:04:34]} 12. c4 {[%emt 0:06:02]} N5b6 {[%emt 0:02:08]} 13. Rad1 {[%emt 0:05:40]} Bf6 {[%emt 0:00:23]} 14. b3 {[%emt 0:04:41]} Qe7 {[%emt 0:02:48]} 15. a4 {[%emt 0:02:53]} Rfd8 {[%emt 0:06:13]} 16. a5 {[%emt 0:03:46]} Nc8 {[%emt 0:00:45]} 17. Bd3 {[%emt 0:07:14]} Bxd3 {[%emt 0:02:12]} 18. Qxd3 {[%emt 0:00:12]} Nf8 {[%emt 0:01:29]} 19. Ne4 {[%emt 0:02:40]} h6 {[%emt 0:02:43]} 20. Nxf6+ {[%emt 0:01:32]} Qxf6 {[%emt 0:02:16]} 21. Ne5 {[%emt 0:09:22]} Nd7 {[%emt 0:01:08]} 22. Nxd7 {[%emt 0:04:44]} Rxd7 {[%emt 0:00:04]} 23. Rd2 {[%emt 0:01:44]} Ne7 {[%emt 0:00:06]} 24. g4 {[%emt 0:06:06]} Rad8 {[%emt 0:02:08]} 25. Qe2 {[%emt 0:06:24]} Ng6 {[%emt 0:01:55]} 26. f4 {[%emt 0:04:53]} Qe7 {[%emt 0:01:08]} 27. Qf2 {[%emt 0:06:13]} Qb4 {[%emt 0:00:46]} 28. f5 {[%emt 0:00:36]} exf5 {[%emt 0:00:32]} 29. gxf5 {[%emt 0:00:09]} Nf8 {[%emt 0:00:28]} 30. f6 {[%emt 0:00:42]} g6 {[%emt 0:00:06]} 31. Bxh6 {[%emt 0:00:26]} Qxb3 {[%emt 0:09:43]} 32. Qh4 {[%emt 0:02:43]} Qb4 {[%emt 0:03:00]} 33. Bg7 {[%emt 0:01:18]} Nh7 {[%emt 0:00:04]} 34. Rd3 {[%emt 0:02:50]} Qxa5 {[%emt 0:00:31]} 35. d5 {[%emt 0:02:00]} Qc5+ {[%emt 0:00:47]} 36. Kh1 {[%emt 0:00:56]} Rxd5 {[%emt 0:00:20]} 37. cxd5 {[%emt 0:00:30]} Rxd5 {[%emt 0:00:08]} 38. Re1 {[%emt 0:03:20]} Rh5 {[%emt 0:02:44]} 39. Rd8+ {[%emt 0:01:49]} Nf8 {[%emt 0:00:02]} 40. Rxf8+ {[%emt 0:01:20]} Qxf8 {[%emt 0:00:15]} 41. Qxh5 {[%emt 0:00:29]} gxh5 {[%emt 0:00:32]} 42. Bxf8 {[%emt 0:00:10]} Kxf8 {[%emt 0:00:07]} 43. Re7 {[%emt 0:00:16]} b5 {[%emt 0:00:47]} 44. Rxa7 {[%emt 0:00:05]} Ke8 {[%emt 0:00:01]} 45. Rc7 {[%emt 0:00:07]} b4 {[%emt 0:00:07]} 46. Rxc6 {[%emt 0:00:02]} b3 {[%emt 0:00:01]} 47. Rb6 {[%emt 0:00:02]} Kd7 {[%emt 0:00:01]} 48. Rxb3 {[%emt 0:00:02]} Ke6 {[%emt 0:00:01]} 49. Rf3 {[%emt 0:00:04]} Ke5 {[%emt 0:00:03]} 50. Kg2 {[%emt 0:00:03]} Ke6 {[%emt 0:00:03]} 51. Kh3 {[%emt 0:00:03]} Ke5 {[%emt 0:00:03]} 52. Kh4 {[%emt 0:00:02]} Ke6 {[%emt 0:00:05]} 53. Kxh5 {[%emt 0:00:02]} Ke5 {[%emt 0:00:02]} 54. Kg4 {[%emt 0:00:07]} Ke6 {[%emt 0:00:12]} 55. h4 {[%emt 0:00:03]} Ke5 {[%emt 0:00:07]} 56. h5 {[%emt 0:00:02]} Ke6 {[%emt 0:00:01]} 57. h6 {[%emt 0:00:03]} Ke5 {[%emt 0:00:02]} 58. h7 {[%emt 0:00:04]} 1-0

[Event "EYCC Girls U10 2021"]
[Site "Tornelo"]
[Date "2021.10.15"]
[Round "5.8"]
[White "Miroshnik, Irina"]
[Black "Lajdamik, Kinga"]
[Result "0-1"]
[ECO "E13"]
[WhiteElo "1147"]
[BlackElo "1367"]
[Annotator "NA RC"]
[PlyCount "134"]
[EventDate "2021.10.15"]
[EventType "swiss"]
[EventCountry "NET"]
[SourceTitle "playchess.com"]
[Source "ChessBase"]
[SourceQuality "1"]
[TimeControl "5400+30"]

1. d4 {[%emt 0:00:30]} Nf6 {[%emt 0:00:44]} 2. c4 {[%emt 0:00:09]} e6 {[%emt 0:00:16]} 3. Nc3 {[%emt 0:00:07]} Bb4 {[%emt 0:00:21]} 4. Bg5 {[%emt 0:00:05]} h6 {[%emt 0:01:28]} 5. Bh4 {[%emt 0:00:43]} b6 {[%emt 0:01:19]} 6. e3 {[%emt 0:00:33]} Bb7 {[%emt 0:01:00]} 7. Nf3 {[%emt 0:00:18]} O-O {[%emt 0:08:19]} 8. Bd3 {[%emt 0:01:23]} d5 {[%emt 0:10:31]} 9. cxd5 {[%emt 0:01:00]} exd5 {[%emt 0:00:16]} 10. O-O {[%emt 0:00:19]} Re8 {[%emt 0:04:07]} 11. Rc1 {[%emt 0:03:22]} Nbd7 {[%emt 0:03:22]} 12. Ne2 {[%emt 0:03:30]} Bd6 {[%emt 0:03:40]} 13. a3 {[%emt 0:00:35]} Qb8 {[%emt 0:00:59]} 14. Bg3 {[%emt 0:04:40]} c6 {[%emt 0:07:14]} 15. Bxd6 {[%emt 0:14:33]} Qxd6 {[%emt 0:00:25]} 16. Nf4 {[%emt 0:00:15]} Kh8 {[%emt 0:21:38]} 17. b4 {[%emt 0:02:30]} a6 {[%emt 0:04:56]} 18. Nh4 {[%emt 0:06:05]} Nf8 {[%emt 0:07:30]} 19. Nf5 {[%emt 0:01:16]} Qd7 {[%emt 0:00:17]} 20. Nh5 {[%emt 0:02:37]} Nxh5 {[%emt 0:03:20]} 21. Qxh5 {[%emt 0:00:07]} Qe6 {[%emt 0:03:47]} 22. Nh4 {[%emt 0:04:37]} Qf6 {[%emt 0:03:00]} 23. Nf3 {[%emt 0:01:45]} Rac8 {[%emt 0:01:29]} 24. Ne5 {[%emt 0:01:11]} Rc7 {[%emt 0:00:24]} 25. a4 {[%emt 0:01:42]} Rec8 {[%emt 0:03:02]} 26. Rc2 {[%emt 0:01:58]} Ne6 {[%emt 0:03:58]} 27. Rfc1 {[%emt 0:01:47]} c5 {[%emt 0:01:13]} 28. Ng4 {[%emt 0:15:06]} Qg5 {[%emt 0:00:49]} 29. Qxg5 {[%emt 0:02:04]} hxg5 {[%emt 0:00:14]} 30. bxc5 {[%emt 0:02:18]} bxc5 {[%emt 0:00:14]} 31. dxc5 {[%emt 0:00:31]} Rxc5 {[%emt 0:00:14]} 32. Rxc5 {[%emt 0:00:20]} Nxc5 {[%emt 0:00:27]} 33. Ne5 {[%emt 0:01:38]} Rc7 {[%emt 0:02:42]} 34. Nxf7+ {[%emt 0:01:01]} Rxf7 {[%emt 0:01:20]} 35. Rxc5 {[%emt 0:00:06]} Kg8 {[%emt 0:00:20]} 36. Bg6 {[%emt 0:00:53]} Rd7 {[%emt 0:00:28]} 37. Bf5 {[%emt 0:00:15]} Re7 {[%emt 0:00:17]} 38. h3 {[%emt 0:00:45]} Kf7 {[%emt 0:00:24]} 39. Bg4 {[%emt 0:00:12]} Kf6 {[%emt 0:00:14]} 40. Bf3 {[%emt 0:00:08]} Rd7 {[%emt 0:00:31]} 41. g4 {[%emt 0:00:56]} g6 {[%emt 0:00:19]} 42. Kf1 {[%emt 0:00:31]} Ke5 {[%emt 0:00:25]} 43. Ke2 {[%emt 0:00:13]} Kd6 {[%emt 0:01:08]} 44. Rc2 {[%emt 0:01:04]} a5 {[%emt 0:00:52]} 45. Rd2 {[%emt 0:00:22]} Kc5 {[%emt 0:00:30]} 46. Rd4 {[%emt 0:00:56]} Ba6+ {[%emt 0:00:45]} 47. Ke1 {[%emt 0:00:12]} Bc4 {[%emt 0:00:07]} 48. Be2 {[%emt 0:00:14]} Rb7 {[%emt 0:01:44]} 49. Rd1 {[%emt 0:03:28]} Rb2 {[%emt 0:01:30]} 50. Bxc4 {[%emt 0:02:27]} dxc4 {[%emt 0:00:10]} 51. Ra1 {[%emt 0:00:28]} c3 {[%emt 0:00:18]} 52. f3 {[%emt 0:01:31]} Rh2 {[%emt 0:00:19]} 53. Rd1 {[%emt 0:02:09]} c2 {[%emt 0:00:18]} 54. Rc1 {[%emt 0:00:18]} Kc4 {[%emt 0:00:07]} 55. e4 {[%emt 0:00:11]} Kd3 {[%emt 0:00:27]} 56. Rxc2 {[%emt 0:00:59]} Rxc2 {[%emt 0:00:08]} 57. e5 {[%emt 0:00:07]} Re2+ {[%emt 0:00:06]} 58. Kf1 {[%emt 0:00:20]} Rxe5 {[%emt 0:00:07]} 59. h4 {[%emt 0:00:20]} gxh4 {[%emt 0:00:07]} 60. f4 {[%emt 0:00:08]} Re4 {[%emt 0:00:09]} 61. g5 {[%emt 0:00:05]} Rxf4+ {[%emt 0:00:05]} 62. Kg2 {[%emt 0:00:13]} Rxa4 {[%emt 0:00:09]} 63. Kh3 {[%emt 0:00:26]} Ke3 {[%emt 0:00:10]} 64. Kh2 {[%emt 0:00:10]} Kf3 {[%emt 0:00:11]} 65. Kh3 {[%emt 0:00:32]} Ra1 {[%emt 0:00:14]} 66. Kh2 {[%emt 0:00:13]} h3 {[%emt 0:00:11]} 67. Kxh3 {[%emt 0:00:16]} Rh1# {[%emt 0:00:08]} 0-1